{"text_format":"1","workbook":"xlsx","n_sheets":3,"sheets":["Feuil1","Feuil2","Feuil3"],"not_rendered":{"charts":0,"images":0,"macros":0,"external_links":0,"defined_names":0,"comments":0,"pivot_tables":0},"unopened":[],"bounds":{"document_bytes":16777216,"sheet_cells":100000,"rows_first":2000,"rows_last":500,"rows_between":2000,"halvings":0,"cell_chars":16384,"cell_head_chars":4096},"cells_cut":0,"cells_raw":0,"read":"whole","date_system":"1900"}

{"sheet":"Feuil1","index":0,"n_rows":60,"n_cols":6,"rows_kept":60,"cut":false,"hidden":false,"merged":[]}
["Produit","code","cumul","Rang",null,"consommation"]
["Café",1,{"$f":"COUNTIF(F:F,B2)","v":6},{"$f":"RANK(C2,$C$2:$C$11)","v":5},null,9]
["Thé",2,{"$f":"COUNTIF(F:F,B3)","v":3},{"$f":"RANK(C3,$C$2:$C$11)","v":8},null,7]
["Chocolat",3,3,8,null,9]
["sirop",4,6,5,null,5]
["jus d'orange",5,8,2,null,4]
["Menthe",6,2,10,null,4]
["Lait",7,6,5,null,4]
["Eau minérale",8,7,3,null,10]
["Scocaz",9,11,1,null,6]
["Schweps",10,7,3,null,1]
[null,null,null,null,null,8]
[null,null,null,null,null,3]
[null,null,null,null,null,8]
[null,null,null,null,null,1]
[null,null,null,null,null,5]
[null,null,null,null,null,5]
[null,null,null,null,null,4]
[null,null,null,null,null,9]
[null,null,null,null,null,9]
[null,null,null,null,null,9]
[null,null,null,null,null,9]
[null,null,null,null,null,7]
[null,null,null,null,null,2]
[null,null,null,null,null,5]
[null,null,null,null,null,8]
[null,null,null,null,null,8]
[null,null,null,null,null,1]
[null,null,null,null,null,7]
[null,null,null,null,null,8]
[null,null,null,null,null,1]
[null,null,null,null,null,3]
[null,null,null,null,null,3]
[null,null,null,null,null,1]
[null,null,null,null,null,5]
[null,null,null,null,null,5]
[null,null,null,null,null,2]
[null,null,null,null,null,7]
[null,null,null,null,null,5]
[null,null,null,null,null,7]
[null,null,null,null,null,9]
[null,null,null,null,null,10]
[null,null,null,null,null,1]
[null,null,null,null,null,9]
[null,null,null,null,null,8]
[null,null,null,null,null,9]
[null,null,null,null,null,7]
[null,null,null,null,null,9]
[null,null,null,null,null,10]
[null,null,null,null,null,8]
[null,null,null,null,null,4]
[null,null,null,null,null,10]
[null,null,null,null,null,5]
[null,null,null,null,null,4]
[null,null,null,null,null,10]
[null,null,null,null,null,9]
[null,null,null,null,null,6]
[null,null,null,null,null,10]
[null,null,null,null,null,2]
[null,null,null,null,null,10]

{"sheet":"Feuil2","index":1,"n_rows":0,"n_cols":0,"rows_kept":0,"cut":false,"hidden":false,"merged":[]}

{"sheet":"Feuil3","index":2,"n_rows":0,"n_cols":0,"rows_kept":0,"cut":false,"hidden":false,"merged":[]}